bitfinex-derivatives/quotes_ETHF0:USTF0_20240922
["timestamp","ask_amount","ask_price","bid_price","bid_amount"]
[1727044675139,0.97476,2564.6,2564.1,3.2078]
[1727044675345,3.59777,2564.2,2563.5,1.16006]
[1727044675548,3.2078,2564.5,2563.6,3.2078]
[1727044675746,0.38994,2564.4,2563.7,0.39002]
[1727044675947,0.39001,2563.9,2563.6,3.2078]
[1727044676255,3.2078,2564.1,2563.6,3.2078]
[1727044676947,0.39005,2563.7,2563.4,0.7384]
[1727044677151,0.708,2564.0,2563.4,0.7384]
[1727044677152,0.39006,2563.6,2563.4,0.7384]
[1727044677456,0.708,2564.0,2563.3,5.899]
[1727044677650,0.39004,2563.8,2563.3,5.899]
[1727044678040,3.9158,2564.0,2563.3,5.899]
[1727044678246,0.708,2564.0,2563.3,5.899]
[1727044678447,0.39004,2563.7,2563.3,5.899]
[1727044679350,0.39003,2563.8,2563.3,5.899]
[1727044679546,0.97481,2564.5,2563.5,3.2078]
[1727044679753,0.38997,2564.2,2563.7,3.34003]
[1727044680346,0.38997,2564.2,2563.7,2.95]
[1727044680546,0.9748,2564.5,2563.7,2.95]
[1727044680848,0.38997,2564.2,2563.7,2.95]
[1727044681041,3.2078,2564.6,2563.7,3.34003]
[1727044681042,0.38996,2564.3,2563.7,3.34003]
[1727044681242,0.38996,2564.2,2563.9,3.2078]
[1727044681451,3.2078,2564.6,2563.8,3.2078]
[1727044681452,3.5977,2564.6,2563.8,3.2078]
[1727044681652,3.5977,2564.6,2564.1,3.2078]
[1727044681653,0.3899,2564.6,2564.1,3.2078]
[1727044681956,0.7729,2564.8,2564.1,8.848]
[1727044682257,1.16278,2564.8,2564.2,0.38996]
[1727044682556,0.38991,2564.6,2564.1,12.0558]
[1727044683157,0.38991,2564.6,2564.1,12.44577]
[1727044683353,0.7729,2564.8,2564.1,12.0558]
[1727044683562,3.2078,2565.2,2564.1,12.0558]
[1727044683852,0.38982,2565.1,2564.5,3.5977]
[1727044684351,3.2078,2565.2,2564.5,4.3157]
[1727044684352,0.38984,2565.0,2564.5,4.3157]
[1727044684546,0.38984,2565.1,2564.5,4.3157]
[1727044684752,3.2078,2565.2,2564.5,3.9258]
[1727044684753,0.38984,2565.0,2564.5,3.9258]
[1727044685251,0.38984,2565.0,2564.5,0.718]
[1727044685455,0.38984,2565.0,2564.5,4.31571]
[1727044685656,3.2078,2565.2,2564.6,0.38989]
[1727044685857,3.2078,2565.2,2564.8,3.2078]
[1727044686164,3.2078,2565.2,2564.9,6.28685]
[1727044686354,3.2078,2565.2,2564.9,5.897]
[1727044686553,3.2078,2565.2,2564.9,6.28685]
[1727044686762,3.9433,2565.5,2564.9,5.897]
[1727044686950,3.2078,2565.9,2564.8,6.1578]
[1727044687154,4.18225,2565.5,2564.8,3.2078]
[1727044687450,0.38983,2565.1,2564.8,3.2078]
[1727044687651,4.18229,2565.3,2564.5,6.615]
[1727044687860,0.38985,2564.9,2564.5,6.615]
[1727044688057,0.97453,2565.2,2564.5,6.615]
[1727044688253,0.38983,2565.1,2564.5,6.615]
[1727044688453,0.38985,2564.9,2564.5,6.615]
[1727044688958,0.38985,2564.9,2564.2,0.7593]
[1727044688959,0.97457,2565.1,2564.2,0.7593]
[1727044689150,0.97461,2565.0,2564.4,3.2078]
[1727044689551,0.38994,2564.4,2564.2,5.896]
[1727044689760,0.38992,2564.5,2564.2,5.896]
[1727044689959,4.18241,2565.0,2564.2,5.896]
[1727044689960,3.2078,2565.0,2564.2,5.896]
[1727044690255,3.2078,2565.0,2564.3,3.2078]
[1727044690461,3.2078,2565.0,2564.4,2.95]
[1727044690769,3.2078,2565.0,2564.6,0.38989]
[1727044691156,3.2078,2565.0,2564.4,1.15523]
[1727044691462,3.2078,2565.0,2564.4,6.6613]
[1727044691463,0.38989,2564.7,2564.4,6.6613]
[1727044691970,0.97457,2565.1,2564.4,6.6613]
[1727044692263,0.97464,2564.9,2564.3,5.896]
[1727044692562,3.2078,2565.0,2564.1,8.846]
[1727044692753,0.38988,2564.8,2564.3,3.2078]
[1727044692958,3.2078,2565.0,2564.3,3.2078]
[1727044692959,0.38991,2564.6,2564.3,3.2078]
[1727044693159,2.92084692,2565.6,2564.4,9.7992]
[1727044693361,0.38967,2566.2,2565.6,2.95]
[1727044693564,3.2078,2566.1,2565.2,6.1578]
[1727044693865,3.2078,2566.1,2565.2,2.95]
[1727044693866,3.59748,2566.1,2565.2,2.95]
[1727044694067,3.2078,2566.1,2565.2,2.95]
[1727044694260,3.2078,2566.1,2565.3,0.7243]
[1727044694463,3.2078,2566.1,2565.4,3.2078]
[1727044694964,3.2078,2566.1,2565.7,3.2078]
[1727044695156,3.2078,2566.8,2566.0,3.2078]
[1727044695360,5.895,2567.6,2566.1,0.77]
[1727044695361,3.2078,2566.5,2566.1,0.77]
[1727044695561,3.59742,2566.5,2565.6,2.95]
[1727044695969,3.2078,2566.5,2565.6,2.95]
[1727044696669,3.2078,2566.2,2565.5,3.2078]
[1727044697073,3.59741,2566.5,2565.6,2.95]
[1727044697365,3.2078,2566.5,2565.6,2.95]
[1727044697559,3.59742,2566.5,2565.6,2.95]
[1727044698064,3.2078,2566.5,2565.6,2.95]
[1727044698561,3.2078,2566.2,2565.6,2.95]
[1727044698762,3.2078,2566.6,2565.8,3.2078]
[1727044698971,3.2078,2566.6,2566.1,3.2078]
[1727044700562,3.2078,2566.6,2566.2,0.7673]
[1727044700764,3.2078,2566.6,2566.0,3.9155]
[1727044701071,3.2078,2566.6,2566.0,3.2078]
[1727044702768,3.2078,2566.6,2566.1,0.759]
[1727044703965,3.59741,2566.6,2566.1,0.759]
[1727044704362,0.7359,2567.0,2566.3,6.1578]
[1727044704569,1.15262,2567.1,2566.4,3.2078]
[1727044704570,0.38953,2567.1,2566.4,3.2078]
[1727044704886,3.59734,2567.0,2566.4,3.2078]
[1727044705069,0.38956,2566.9,2566.4,3.2078]
[1727044705269,3.2078,2566.9,2566.4,3.2078]
[1727044705472,3.2078,2567.2,2566.4,3.2078]
[1727044706375,3.59731,2567.2,2566.4,3.2078]
[1727044706572,3.59731,2567.2,2566.4,3.9843]
[1727044707574,3.59731,2567.2,2566.4,4.37392]
[1727044707774,3.2078,2567.2,2566.7,3.2078]
[1727044707975,3.9235,2568.0,2567.0,6.1578]
[1727044707976,0.38939,2568.0,2567.0,6.1578]
[1727044708177,3.2078,2568.1,2567.5,3.2078]
[1727044708379,3.2078,2568.1,2567.8,2.95]
[1727044708878,3.2078,2568.2,2567.8,2.95]
[1727044709173,0.38934,2568.4,2567.5,3.59726]
[1727044709376,3.2078,2568.5,2567.2,0.19073643]
[1727044709377,3.2078,2568.5,2567.9,8.30001629]
[1727044709574,3.2078,2568.5,2567.9,5.09221629]
[1727044709781,3.2078,2568.5,2568.2,2.95]
[1727044709969,3.2078,2569.4,2568.6,0.38928]
[1727044710172,0.3892,2569.3,2568.9,3.2078]
[1727044710372,3.2078,2569.4,2568.7,5.86]
[1727044710579,3.59698,2569.4,2568.7,5.86]
[1727044710878,3.59698,2569.4,2568.7,9.0678]
[1727044710879,0.38919,2569.3,2568.7,9.0678]
[1727044711176,3.2078,2569.4,2568.7,9.0678]
[1727044711484,3.2078,2569.4,2569.0,3.2078]
[1727044712173,3.2078,2569.4,2568.8,0.7654]
[1727044712883,0.97284,2569.7,2568.7,3.2078]
[1727044712884,3.2078,2569.1,2568.7,3.2078]
[1727044713174,0.3892,2569.2,2568.7,3.2078]
[1727044713478,3.2078,2569.2,2568.7,3.2078]
[1727044713678,0.38919,2569.3,2568.7,3.2078]
[1727044714070,3.2078,2569.2,2568.7,3.2078]
[1727044714265,3.2078,2569.5,2568.7,3.2078]
[1727044714466,0.3892,2569.3,2568.7,3.2078]
[1727044714676,0.3892,2569.2,2568.7,3.2078]
[1727044715071,3.2078,2569.5,2568.7,3.2078]
[1727044715277,0.38922,2569.1,2568.7,3.2078]
[1727044715666,0.38919,2569.3,2568.7,3.2078]
[1727044716075,0.9639,2570.0,2569.0,3.2078]
[1727044716076,3.2078,2569.8,2569.0,3.2078]
[1727044716275,3.2078,2569.8,2569.3,3.2078]
[1727044716469,3.2078,2569.8,2569.3,6.1578]
[1727044716674,0.2,2570.0,2569.6,3.2078]
[1727044717279,0.15194743,2570.0,2569.9,3.5969]
[1727044717575,4.7318,2571.6,2569.9,24.45902194]
[1727044717778,4.7318,2571.6,2570.8,3.2078]
[1727044718084,0.38892,2571.1,2570.6,2.95]
[1727044718282,3.2078,2571.7,2570.7,3.2078]
[1727044718472,3.2078,2572.3,2571.6,2.95]
[1727044718671,3.2078,2572.3,2571.9,2.95]
[1727044719079,3.2078,2572.0,2571.4,3.2078]
[1727044719279,3.8888,2571.9,2571.1,3.2078]
[1727044719473,0.38892,2571.1,2570.4,2.95]
[1727044719678,0.97211,2571.6,2570.4,2.95]
[1727044719679,3.2078,2571.0,2570.4,2.95]
[1727044719874,3.2078,2571.0,2570.3,6.219]
[1727044720077,0.38898,2570.7,2570.1,3.2078]
[1727044720288,3.2078,2570.7,2570.1,3.2078]
[1727044721177,3.2078,2571.0,2570.2,2.95]
[1727044721980,3.2078,2571.3,2570.6,2.95]
[1727044722474,3.2078,2571.3,2571.0,2.95]
[1727044722982,3.2078,2571.3,2570.7,3.2078]
[1727044723484,3.59669,2571.3,2570.7,3.2078]
[1727044723679,3.2078,2571.3,2570.7,3.2078]
[1727044724081,3.2078,2571.9,2571.0,6.1578]
[1727044724281,3.2078,2571.6,2571.0,6.1578]
[1727044724677,3.2078,2572.0,2571.0,6.54673]
[1727044724882,0.38883,2571.7,2571.0,6.1578]
[1727044725084,3.59663,2571.7,2571.0,6.1578]
[1727044725290,0.9718,2572.5,2571.3,6.1578]
[1727044725488,3.2078,2574.0,2572.4,2.95]
[1727044725680,3.2078,2574.0,2573.1,2.95]
[1727044725681,0.3885,2573.9,2573.1,2.95]
[1727044725887,3.2078,2573.6,2572.8,3.2078]
[1727044726104,3.2078,2573.1,2572.5,8.30795126]
[1727044726282,3.2078,2573.1,2572.4,3.2078]
[1727044726684,3.2078,2573.1,2572.1,6.1578]
[1727044726885,3.2078,2573.3,2572.4,3.2078]
[1727044727090,2.95,2573.9,2572.4,3.2078]
[1727044727091,3.2078,2573.6,2572.4,3.2078]
[1727044727284,3.2078,2573.6,2572.7,3.2078]
[1727044727488,3.2078,2573.6,2573.1,3.2078]
[1727044727692,3.2078,2574.0,2573.4,3.2078]
[1727044727886,3.2078,2574.0,2573.3,3.2078]
[1727044728087,3.2078,2574.4,2573.3,3.2078]
[1727044728289,3.2078,2574.4,2573.6,3.2078]
[1727044728590,3.2078,2573.9,2573.4,3.2078]
[1727044728788,3.2078,2573.9,2572.8,3.2078]
[1727044728994,0.38851,2573.8,2572.8,3.2078]
[1727044729198,3.2078,2573.2,2572.6,1.4301]
[1727044729492,3.2078,2573.8,2572.6,1.4301]
[1727044729693,0.38855,2573.6,2572.6,1.4301]
[1727044729896,3.2078,2573.4,2572.6,0.7075]
[1727044730394,0.38856,2573.5,2572.7,3.2078]
[1727044730395,3.2078,2573.5,2572.7,3.2078]
[1727044730613,3.2078,2573.8,2573.0,3.2078]
[1727044730894,3.9733,2574.2,2573.0,3.2078]
[1727044731192,3.9733,2574.2,2573.4,3.2078]
[1727044731397,3.2078,2574.2,2573.8,3.2078]
[1727044731591,3.2078,2575.1,2574.1,3.2078]
[1727044731790,0.7655,2575.4,2574.8,3.2078]
[1727044731791,3.9733,2575.4,2574.8,3.2078]
[1727044731989,3.9733,2575.4,2574.5,3.2078]
[1727044732196,4.6902,2575.8,2575.0,3.2078]
[1727044732393,3.2078,2575.8,2575.0,3.2078]
[1727044732896,3.2078,2575.2,2574.7,3.2078]
[1727044733097,3.2078,2575.2,2574.1,4.6482]
[1727044733489,3.2078,2575.6,2574.7,3.2078]
[1727044733699,3.59605,2575.6,2574.6,3.2078]
[1727044733995,3.2078,2575.3,2574.6,3.2078]
[1727044734598,0.38831,2575.2,2574.6,3.2078]
[1727044735096,3.2078,2575.0,2574.2,3.2078]
[1727044735701,3.59614,2575.0,2574.2,3.2078]
[1727044735908,3.2078,2575.0,2574.2,3.2078]
[1727044736406,3.2078,2574.6,2574.0,6.447]
[1727044736701,3.2078,2574.3,2573.5,3.2078]
[1727044736899,3.2078,2574.3,2573.1,4.4134]
[1727044736900,3.2078,2574.3,2573.2,3.2078]
[1727044737107,0.38853,2573.7,2573.2,3.2078]
[1727044737402,3.2078,2573.8,2573.2,3.2078]
[1727044737609,0.38849,2574.0,2573.4,3.2078]
[1727044737901,3.2078,2574.1,2573.3,3.2078]
[1727044738103,3.2078,2573.8,2572.7,3.2078]
[1727044738306,3.2078,2573.5,2572.7,3.2078]
[1727044738903,3.2078,2573.5,2573.0,3.2078]
[1727044739103,1.5068,2574.2,2573.0,3.2078]
[1727044739104,3.2078,2573.9,2573.0,3.2078]
[1727044739408,0.38849,2573.9,2573.0,3.2078]
[1727044739599,0.97095,2574.7,2573.0,3.2078]
[1727044739600,3.2078,2574.3,2573.6,3.2078]
[1727044739800,3.2078,2574.3,2573.1,8.15358795]
[1727044740012,3.2078,2573.9,2573.1,3.2078]
[1727044740407,3.2078,2573.9,2572.5,4.6201]
[1727044740408,3.2078,2573.6,2572.5,4.6201]
[1727044740604,3.2078,2573.6,2572.8,3.2078]
[1727044740802,3.2078,2573.6,2572.4,6.443]
[1727044740803,0.38868,2572.9,2572.4,3.2078]
[1727044741102,0.38868,2572.9,2572.0,3.2078]
[1727044741103,3.2078,2572.6,2572.0,3.2078]
[1727044741411,3.2078,2572.6,2571.6,4.4835]
[1727044741412,3.2078,2572.6,2571.7,3.2078]
[1727044742196,3.6806,2573.5,2571.7,3.2078]
[1727044742197,3.59658,2572.3,2571.7,3.2078]
[1727044742410,3.92164,2573.1,2571.2,2.95]
[1727044742411,3.2078,2571.8,2571.2,2.95]
[1727044742614,3.2078,2572.2,2571.6,2.95]
[1727044742801,3.2078,2572.8,2572.1,3.2078]
[1727044743307,3.2078,2573.3,2572.7,3.2078]
[1727044744207,0.7267,2573.8,2572.1,1.488]
[1727044744208,3.2078,2573.8,2573.0,3.2078]
[1727044745207,3.59635,2573.8,2573.0,3.2078]
[1727044745407,3.2078,2573.2,2572.4,6.1578]
[1727044745613,3.2078,2573.2,2572.4,6.12327197]
[1727044746008,3.2078,2573.2,2572.4,5.88157582]
[1727044746204,3.2078,2573.2,2572.4,3.2078]
[1727044746410,3.2078,2573.2,2570.8,9.719]
[1727044746411,3.2078,2572.5,2571.7,3.59665]
[1727044746608,3.2078,2572.5,2571.7,3.2078]
[1727044747017,3.2078,2571.8,2571.2,3.2078]
[1727044747407,3.2078,2571.5,2571.0,1.534]
[1727044747604,3.2078,2571.5,2570.8,0.389]
[1727044747816,0.38892,2571.4,2570.5,9.6518]
[1727044748203,3.2078,2571.5,2570.5,3.2078]
[1727044748412,3.2078,2570.8,2570.4,3.712]
[1727044748824,3.2078,2570.8,2570.4,0.762]
[1727044749321,3.2078,2570.8,2570.2,3.2078]
[1727044749511,3.2078,2570.8,2570.0,0.7331]
[1727044749512,3.59684,2570.5,2570.0,0.7331]
[1727044749707,3.2078,2570.5,2569.8,0.38915]
[1727044749909,3.2078,2570.6,2569.8,3.2078]
[1727044750105,0.38905,2570.5,2569.8,3.2078]
[1727044750309,0.38905,2570.5,2569.7,2.95]
[1727044750310,3.2078,2570.3,2569.7,2.95]
[1727044750504,3.59688,2570.3,2569.5,3.2078]
[1727044750705,3.2078,2570.0,2569.5,3.2078]
[1727044750911,3.2078,2570.8,2569.8,3.2078]
[1727044751110,3.2078,2570.8,2570.1,3.2078]
[1727044751111,3.5968,2570.8,2570.1,3.2078]
[1727044751511,3.2078,2570.8,2570.1,3.2078]
[1727044751818,3.2078,2570.2,2569.4,3.2078]
[1727044752112,1.68235,2571.0,2569.4,3.2078]
[1727044752113,0.38912,2570.0,2569.4,3.2078]
[1727044752313,3.59692,2570.0,2569.4,3.2078]
[1727044752518,3.2078,2570.1,2569.4,3.59701]
[1727044752818,3.2078,2570.1,2569.0,0.7331]
[1727044752819,3.2078,2570.7,2570.0,3.2078]
[1727044753016,3.2078,2570.7,2570.0,3.59691]
[1727044753420,3.59682,2570.7,2570.0,3.2078]
[1727044753816,3.2078,2571.1,2570.5,2.95]
[1727044754019,13.46575387,2573.5,2570.6,3.2078]
[1727044754020,3.9217,2571.4,2570.6,3.2078]
[1727044754211,0.38896,2571.1,2570.6,3.2078]
[1727044754710,3.9217,2571.4,2570.5,2.95]
[1727044754711,0.38895,2571.2,2570.9,3.2078]
[1727044755024,3.2078,2571.4,2570.9,3.2078]
[1727044755209,3.2078,2571.4,2570.1,0.7576]
[1727044755210,3.2078,2571.1,2570.3,3.2078]
[1727044755609,0.389,2570.8,2570.3,3.2078]
[1727044755914,3.2078,2570.6,2570.1,0.7576]
[1727044756522,3.2078,2571.2,2570.1,3.7076]
[1727044756720,3.2078,2571.2,2570.6,0.38902]
[1727044756915,3.2078,2571.2,2570.5,2.95]
[1727044757509,3.59674,2571.2,2570.5,2.95]
[1727044757914,3.2078,2570.9,2570.4,3.2078]
[1727044758120,3.2078,2570.9,2570.4,3.59685]
[1727044758317,3.2078,2570.9,2570.4,3.2078]
[1727044758715,3.2078,2571.4,2570.7,3.5968]
[1727044758914,1.68106,2572.0,2570.7,3.5968]
[1727044758915,0.38885,2571.8,2571.0,0.38896]
[1727044759118,3.2078,2571.7,2571.0,3.2078]
[1727044759316,1.4803,2572.1,2571.4,0.3889]
[1727044759317,3.2078,2572.1,2571.4,0.3889]
[1727044759619,3.2078,2572.1,2571.3,3.2078]
[1727044759819,0.38884,2571.9,2571.3,3.2078]
[1727044760014,0.38885,2571.8,2571.3,3.2078]
[1727044760215,3.2078,2572.1,2571.3,3.2078]
[1727044760517,0.38882,2572.0,2571.3,3.2078]
[1727044760719,0.38884,2571.9,2571.3,3.2078]
[1727044761422,3.59661,2572.1,2571.4,0.3889]
[1727044761627,3.2078,2572.1,2571.3,3.2078]
[1727044761827,3.2078,2572.5,2571.6,6.1578]
[1727044762018,3.2078,2572.5,2571.6,3.2078]
[1727044762221,0.38878,2572.3,2571.6,3.59668]
[1727044762420,3.2078,2572.5,2571.7,3.2078]
[1727044762920,3.2078,2572.5,2571.1,1.68479]
[1727044762921,0.38871,2572.7,2572.0,3.59661]
[1727044763120,0.38875,2572.5,2571.8,0.38884]
[1727044763432,0.38875,2572.5,2572.0,3.2078]
[1727044763924,0.38872,2572.7,2572.0,3.59661]
[1727044764231,3.2078,2573.2,2572.6,2.95]
[1727044764419,2.0247851,2574.1,2572.6,2.95]
[1727044764420,3.59639,2573.6,2572.8,3.2078]
[1727044764624,3.59638,2573.6,2572.8,3.2078]
[1727044764931,0.38848,2574.3,2573.5,6.1578]
[1727044765233,3.2078,2574.3,2573.5,6.1578]
[1727044765423,3.59628,2574.3,2573.5,6.1578]
[1727044765618,0.38849,2574.2,2573.5,3.2078]
[1727044765818,0.38854,2573.9,2573.5,3.2078]
[1727044766028,3.2078,2573.9,2573.1,3.2078]
[1727044766629,0.38855,2573.8,2573.1,3.2078]
[1727044767328,0.38857,2573.7,2573.1,3.2078]
[1727044767632,0.38855,2573.8,2573.1,3.2078]
[1727044768030,0.38856,2573.7,2573.1,3.2078]
[1727044768233,0.38856,2573.7,2572.3,1.472]
[1727044768234,3.2078,2573.3,2572.5,3.2078]
[1727044768430,3.59647,2573.0,2572.2,3.2078]
[1727044768628,0.38868,2572.9,2572.2,3.2078]
[1727044768826,3.59647,2573.0,2572.2,3.2078]
[1727044769232,3.2078,2573.0,2572.2,3.2078]
[1727044769433,0.97158,2573.3,2572.2,3.2078]
[1727044769434,0.38873,2572.6,2572.2,3.2078]
[1727044769628,3.59653,2572.6,2571.9,6.343]
[1727044769925,3.2078,2572.6,2571.9,6.343]
[1727044770329,0.38874,2572.5,2571.8,3.2078]
[1727044770525,3.2078,2572.6,2571.8,3.2078]
[1727044770729,0.38883,2572.0,2571.4,3.2078]
[1727044771032,3.2078,2572.8,2571.9,3.59663]
[1727044771223,0.38876,2572.4,2571.8,3.2078]
[1727044771723,0.97179,2572.7,2571.8,3.2078]
[1727044771928,0.38877,2572.4,2571.8,3.2078]
[1727044772123,4.4792,2573.2,2572.2,3.2078]
[1727044772124,0.7712,2573.2,2572.2,3.2078]
[1727044772325,3.2078,2572.8,2571.8,3.2078]
[1727044772521,0.38876,2572.4,2571.8,3.2078]
[1727044772729,3.2078,2572.8,2572.1,3.2078]
[1727044773220,4.17945,2573.1,2572.1,3.2078]
[1727044773423,0.38874,2572.5,2572.1,3.2078]
[1727044773619,3.2078,2573.1,2572.1,3.2078]
[1727044773927,0.01,2572.2,2572.1,3.2078]
[1727044774126,0.01,2572.2,2572.1,6.5466]
[1727044774329,0.01,2572.2,2572.1,16.4346]
[1727044774730,0.01,2572.2,2572.1,3.2078]
[1727044775230,0.01,2572.2,2572.1,7.0958]
[1727044775428,0.01,2572.2,2572.1,3.2078]
[1727044775821,3.898,2572.2,2571.7,3.2078]
[1727044776029,3.898,2572.2,2571.4,2.95]
[1727044776030,0.01,2572.2,2571.6,3.2078]
[1727044776229,0.39879,2572.2,2571.6,3.2078]
[1727044776429,0.38882,2572.0,2571.6,3.2078]
[1727044776632,0.38884,2571.9,2571.6,3.2078]
[1727044776827,0.38884,2571.9,2571.3,3.2078]
[1727044777022,0.38884,2571.9,2571.7,3.2078]
[1727044777228,0.38884,2571.9,2571.0,2.95]
[1727044777229,0.38885,2571.8,2571.4,3.2078]
[1727044777433,0.38884,2571.9,2571.4,3.2078]
[1727044777637,0.01,2572.2,2571.4,3.2078]
[1727044777638,0.38882,2572.0,2571.4,3.2078]
[1727044777833,0.01,2572.2,2571.4,3.2078]
[1727044777834,0.38881,2572.1,2571.4,3.2078]
[1727044778136,0.38881,2572.1,2571.4,3.59671]
[1727044778437,0.01,2572.2,2572.0,3.2078]
[1727044779225,0.39879,2572.2,2572.0,3.2078]
[1727044779824,0.01,2572.2,2572.0,3.2078]
[1727044781429,0.99911004,2573.7,2572.8,0.38868]
[1727044781628,1.72111004,2573.9,2573.2,3.2078]
[1727044781827,0.38861,2573.4,2573.2,3.2078]
[1727044782228,0.722,2573.9,2573.2,3.2078]
[1727044782738,0.7043,2574.0,2573.8,3.2078]
[1727044782935,0.722,2574.5,2573.8,3.2078]
[1727044783136,0.38848,2574.2,2574.1,3.2078]
[1727044783337,0.722,2574.5,2573.3,7.94424988]
[1727044783338,0.722,2574.5,2573.7,3.2078]
[1727044783536,0.38848,2574.3,2573.7,3.2078]
[1727044783948,0.38846,2574.4,2574.1,3.2078]
[1727044784238,0.722,2574.7,2574.1,3.2078]
[1727044784742,0.722,2574.7,2573.1,3.9431]
[1727044784743,3.2078,2574.2,2573.1,3.9431]
[1727044784938,3.2078,2573.5,2573.1,3.2078]
[1727044785141,3.2078,2574.1,2573.1,3.2078]
[1727044785438,3.2078,2574.1,2573.4,3.2078]
[1727044786038,0.38847,2574.3,2573.7,3.2078]
[1727044786249,3.9318,2574.4,2573.7,3.2078]
[1727044786250,4.32026,2574.4,2573.7,3.2078]
[1727044786451,4.32026,2574.4,2573.8,3.2078]
[1727044786452,3.9318,2574.4,2573.8,3.2078]
[1727044786752,0.38847,2574.3,2573.8,3.2078]
[1727044786954,0.38844,2574.5,2573.8,3.2078]
[1727044787146,0.38846,2574.4,2574.1,3.2078]
[1727044787540,0.38844,2574.5,2574.1,3.2078]
[1727044787746,0.722,2574.7,2574.1,3.2078]
[1727044787949,0.38848,2574.2,2574.1,3.2078]
[1727044788154,0.38853,2573.9,2573.6,3.2078]
[1727044788451,0.3885,2574.1,2573.6,3.2078]
[1727044788657,0.38852,2574.0,2573.6,3.2078]
[1727044788842,0.38851,2574.1,2573.6,3.2078]
[1727044789048,0.38852,2574.0,2573.6,3.2078]
[1727044789250,0.38851,2574.1,2573.6,3.2078]
[1727044789449,3.2078,2574.3,2573.6,3.2078]
[1727044789755,0.38846,2574.4,2573.9,3.2078]
[1727044789957,0.38844,2574.5,2574.2,3.2078]
[1727044790249,3.2078,2574.8,2574.2,3.2078]
[1727044790452,0.38839,2574.9,2574.1,3.2078]
[1727044790650,0.38839,2574.9,2574.5,3.2078]
[1727044790845,0.38837,2575.0,2574.5,3.2078]
[1727044791045,3.40697004,2575.5,2574.5,3.2078]
[1727044791046,2.43621004,2575.5,2574.5,3.2078]
[1727044791245,0.38834,2575.2,2574.8,3.2078]
[1727044791451,1.4371,2575.5,2574.8,3.2078]
[1727044791648,0.38831,2575.4,2574.8,3.2078]
[1727044792155,3.9823,2575.6,2574.8,3.2078]
[1727044792361,0.3883,2575.5,2574.8,3.2078]
[1727044792557,3.9823,2575.6,2574.8,3.2078]
[1727044792856,3.2078,2575.6,2574.8,3.2078]
[1727044793354,0.38842,2574.7,2574.4,3.2078]
[1727044793552,3.2078,2575.1,2574.4,3.2078]
[1727044793751,0.38842,2574.7,2574.4,3.2078]
[1727044794158,3.2078,2575.1,2573.9,3.2078]
[1727044794352,0.97085,2575.2,2572.9,0.4418]
[1727044794353,3.2078,2574.6,2573.6,3.2078]
[1727044794557,0.38852,2574.0,2573.6,3.2078]
[1727044795452,3.2078,2574.4,2573.6,3.2078]
[1727044795652,3.2078,2574.4,2572.6,3.2078]
[1727044795653,0.97141,2573.7,2572.6,3.2078]
[1727044795853,6.8348,2574.3,2572.3,3.2078]
[1727044795854,3.2078,2573.1,2572.3,3.2078]
[1727044796061,3.2078,2572.8,2572.0,3.2078]
[1727044796353,4.17955,2572.8,2572.0,3.2078]
[1727044796558,3.2078,2572.8,2572.0,3.2078]
[1727044796953,3.59651,2572.8,2572.4,3.2078]
[1727044797260,0.38869,2572.9,2572.6,3.2078]
[1727044797453,3.2078,2573.1,2572.6,3.2078]
[1727044797759,3.2078,2573.4,2572.7,2.95]
[1727044797950,3.2078,2573.4,2572.9,3.2078]
[1727044797951,3.59641,2573.4,2572.9,3.2078]
[1727044798151,0.38863,2573.3,2572.9,3.2078]
[1727044798349,3.59641,2573.4,2572.9,3.2078]
[1727044798553,3.2078,2573.4,2572.5,3.2078]
[1727044798755,0.38865,2573.2,2572.8,3.2078]
[1727044798955,0.38865,2573.2,2572.3,3.33877]
[1727044798956,3.2078,2573.4,2572.5,3.2078]
[1727044799150,3.2078,2573.4,2572.9,3.2078]
[1727044799352,0.38869,2572.9,2572.1,0.7389]
[1727044799561,0.38869,2572.9,2572.5,3.2078]
[1727044799765,3.2078,2573.2,2572.5,3.2078]
[1727044799953,1.97045004,2573.9,2573.1,3.2078]
[1727044799954,0.38857,2573.7,2573.1,3.2078]
[1727044800154,3.2078,2573.9,2573.1,3.2078]
[1727044800155,0.38855,2573.8,2573.1,3.2078]
[1727044800357,0.7353,2574.3,2573.5,0.38858]
[1727044800654,0.7549,2574.5,2573.7,3.59635]
[1727044800850,3.59623,2574.6,2574.0,3.2078]
[1727044800851,3.2078,2574.6,2574.0,3.2078]
[1727044801052,0.38841,2574.7,2573.8,6.54634]
[1727044801264,0.38841,2574.7,2574.1,3.2078]
[1727044801462,0.38843,2574.6,2574.1,3.2078]
[1727044801656,3.2078,2574.8,2573.8,3.2078]
[1727044801854,1.75401004,2575.2,2573.1,3.2078]
[1727044801855,0.38854,2573.9,2573.1,3.2078]
[1727044802057,0.97118,2574.3,2573.1,3.2078]
[1727044802058,0.38855,2573.8,2573.1,3.2078]
[1727044802250,3.2078,2574.1,2573.1,3.2078]
[1727044802450,0.99911004,2574.3,2573.1,3.2078]
[1727044802656,3.2078,2574.2,2573.4,3.2078]
[1727044803065,2.0247851,2574.7,2574.3,0.38847]
[1727044803266,4.20691004,2575.7,2574.6,6.1578]